Cogmind - Beta 9.2 --- EXPLORER MODE // 2019.11.28 @ 15:25:50 Player: SHADOWELITE7 Result: Destroyed by G-47 Trooper with Particle Gun Performance ------------- Evolutions (2) 1000 Regions Visited (6) 1200 Robots Destroyed (62) 310 Value Destroyed (1830) 1830 Prototype IDs (3) 60 Alien Tech Used (0) 0 Bonus (55) 55 TOTAL SCORE: 4455 Bonus ------- High Alert Combat Kills 100 Follower Combat Kills 108 Friendly Fire -153 Cogmind --------- Core Integrity 0/550 Matter 121/300 Energy 100/100 System Corruption 0% Temperature Cool (9) Movement Core (1100) Ox21 Location -8/Materials Parts ------- > --- POWER (1) -------- (None) > --- PROPULSION (4) --- (None) > --- UTILITY (4) ------ Large Storage Unit Large Storage Unit Large Storage Unit Large Storage Unit > --- WEAPON (3) ------- (None) > --- INVENTORY (28) --- Light Nuclear Core Light Nuclear Core Light Treads Weight Redist. System Armor Integrity Analyzer Makeshift Cloaking Device Peak State ------------ > --- POWER ------------ Deuterium Engine > --- PROPULSION ------- Light Treads Light Treads Light Treads Advanced Treads > --- UTILITY ---------- Large Storage Unit Large Storage Unit Large Storage Unit Large Storage Unit > --- WEAPON ----------- Light Cannon Rocket Launcher Mini Grenade Launcher > --- INVENTORY -------- Light Nuclear Core Light Treads Light Treads Weight Redist. System Armor Integrity Analyzer Makeshift Cloaking Device [Rating: 19] Favorites ----------- Power Ion Engine Engine Ion Engine Propulsion Light Treads Treads Light Treads Utility Large Storage Unit Storage Large Storage Unit Processor Targeting Computer Protection Power Shielding Weapon Light Assault Rifle Energy Gun Improved Medium Laser Energy Cannon Particle Cannon Ballistic Gun Light Assault Rifle Ballistic Cannon Light Cannon Launcher Rocket Launcher Build | -11 -10 -9 -9 -9 -8 -8 ------- Run | Scr Mat Mat Min Exi Min Mat Slots Evolved 5 | . 1 2 . . . 2 Power . | . . . . . . . Propulsion 2 | . . . . . . 2 Utility 2 | . 1 1 . . . . Weapon 1 | . . 1 . . . . Parts Attached 25 | 7 4 3 . . . 11 Power 2 | 1 . . . . . 1 Engine 2 | 1 . . . . . 1 Core . | . . . . . . . Reactor . | . . . . . . . Propulsion 6 | 2 . . . . . 4 Treads 6 | 2 . . . . . 4 Leg . | . . . . . . . Wheel . | . . . . . . . Hover . | . . . . . . . Flight . | . . . . . . . Utility 9 | 2 4 1 . . . 2 Device . | . . . . . . . Storage 6 | 1 3 . . . . 2 Processor 1 | . 1 . . . . . Hackware . | . . . . . . . Protection 2 | 1 . 1 . . . . Artifact . | . . . . . . . Weapon 8 | 2 . 2 . . . 4 Energy Gun 1 | . . 1 . . . . Energy Cannon 1 | . . . . . . 1 Ballistic Gun 3 | 2 . 1 . . . . Ballistic Cannon 1 | . . . . . . 1 Launcher 2 | . . . . . . 2 Special Weapon . | . . . . . . . Impact Weapon . | . . . . . . . Slashing Weapon . | . . . . . . . Piercing Weapon . | . . . . . . . Special Melee Weapon . | . . . . . . . Unidentified Prototypes 1 | . . 1 . . . . Parts Lost 8 | . . . . . . 8 Power 1 | . . . . . . 1 Propulsion 4 | . . . . . . 4 Utility . | . . . . . . . Weapon 3 | . . . . . . 3 Highest Loss Streak 8 | . . . . . . 8 Average Slot Usage (%) 99 | . 99 100 100 100 100 95 Engine 9 | . 12 10 10 10 10 7 Treads 22 | . 25 20 20 20 20 31 Storage 29 | . 17 30 30 30 30 32 Protection 8 | . 9 10 10 10 10 . Energy Gun 6 | . . 1 10 10 10 1 Ballistic Gun 18 | . 25 28 20 20 20 7 Ballistic Cannon 1 | . . . . . . 5 Naked Turns . | . . . . . . . Heaviest Build 82 | 19 48 52 52 52 52 82 Greatest Support 82 | 40 40 40 40 40 40 82 Greatest Overweight (x) 22 | . 1 1 1 1 1 22 Average Overweight (x) . | . . 1 1 1 1 . Largest Inventory Capacity 28 | 8 20 20 20 20 20 28 Average Capacity 20 | 7 10 20 20 20 20 27 Most Carried 8 | 4 5 3 2 3 5 8 Average Carried 3 | 2 2 2 2 2 3 5 Final Capacity 28 | 8 20 20 20 20 20 28 Final Carried 6 | 4 2 2 2 3 5 6 Class Distribution -------------------- 37% | Commander-Tank 35% | Hauler-Tank 15% | Hauler-Gunner 6% | Mutant 4% | Hauler-Mutant Dominant Class ---------------- Mutant | -10/Materials Hauler-Tank | -9/Materials Hauler-Tank | -9/Mines Commander-Tank | -9/Exiles Hauler-Tank | -8/Mines Hauler-Gunner | -8/Materials Resources | -11 -10 -9 -9 -9 -8 -8 ----------- Run | Scr Mat Mat Min Exi Min Mat Matter Collected 1008 | 221 110 163 16 12 16 470 Remotely . | . . . . . . . Salvage Created 1638 | . 66 395 38 12 209 918 Parts 108 | . 6 34 4 . 10 54 Haulers Intercepted . | . . . . . . . Recyclers Shooed 1 | . . . . . . 1 Parts Field Recycled . | . . . . . . . Retrieved Matter . | . . . . . . . Parts Self-Destructed . | . . . . . . . Prevented . | . . . . . . . Kills | -11 -10 -9 -9 -9 -8 -8 ------- Run | Scr Mat Mat Min Exi Min Mat Combat Hostiles Destroyed 47 | . 3 10 3 . 3 28 Guns 22 | . 3 10 3 . 3 3 Cannons 8 | . . . . . . 8 AOE 17 | . . . . . . 17 Classes Destroyed 10 | . 2 3 . . 1 4 Worker 7 | . . 1 . . . 6 Builder 2 | . . . . . . 2 Tunneler 1 | . . . . . . 1 Operator 1 | . . . . . . 1 Watcher 3 | . . 3 . . . . Swarmer 13 | . 2 4 3 . . 4 Grunt 28 | . 1 5 . . 3 19 Brawler 1 | . . . . . 1 . Sentry 4 | . . 1 . . . 3 Hunter 2 | . . . . . . 2 Best Kill Streak 10 | . 2 4 3 . 2 10 Combat Bots Only 9 | . 2 2 3 . 2 9 Max Kills in Single Turn 3 | . 1 2 1 . 2 3 Gunslinging 1 | . . 1 . . . . Exploded 2 | . . . . . . 2 Melee . | . . . . . . . Uniques/NPCs Destroyed . | . . . . . . . Combat | -11 -10 -9 -9 -9 -8 -8 -------- Run | Scr Mat Mat Min Exi Min Mat Damage Taken 2616 | . 51 287 16 . 36 2226 Core 586 | . . 32 . . . 554 Absorbed by Shields . | . . . . . . . Core Remaining (%) 97 | 100 100 . . . 92 . Volleys Fired 102 | . 10 25 4 3 4 56 Largest 3 | . 2 3 3 3 3 3 Hottest 123 | . 40 96 96 96 96 123 Shots Fired 271 | . 20 75 12 9 12 143 Gun 176 | . 20 75 12 9 12 48 Cannon 66 | . . . . . . 66 Launcher 29 | . . . . . . 29 Special . | . . . . . . . Kinetic 191 | . 20 64 8 6 8 85 Thermal 51 | . . 11 4 3 4 29 Explosive 29 | . . . . . . 29 Electromagnetic . | . . . . . . . Robot Hit Streak 27 | . 11 27 10 4 16 27 Robot Miss Streak 2 | . 1 1 2 . . 2 Penetration Max . | . . . . . . . Secondary Targets 6 | . . 3 . . 2 1 Max Gunslinging Chain 1 | . . 1 . . 1 1 Shots Hit Robots 198 | . 16 59 4 1 12 106 Core Hits 125 | . 5 26 3 1 8 82 Critical Hits 1 | . . 1 . . . . Critical Kills . | . . . . . . . Critical Parts Destroyed 1 | . . 1 . . . . Melee Attacks . | . . . . . . . Impact . | . . . . . . . Slashing . | . . . . . . . Piercing . | . . . . . . . Sneak Attacks . | . . . . . . . Combat Hostiles . | . . . . . . . Follow-up Attacks . | . . . . . . . Damage Inflicted 4512 | . 149 651 68 17 190 3437 Guns 1459 | . 149 651 68 17 149 425 Cannons 1004 | . . . . . . 1004 Explosions 1999 | . . . . . . 1999 Melee . | . . . . . . . Ramming 50 | . . . . . 41 9 Kinetic 1666 | . 149 497 . . 81 939 Thermal 797 | . . 154 68 17 68 490 Explosive 1999 | . . . . . . 1999 Electromagnetic . | . . . . . . . Impact . | . . . . . . . Slashing . | . . . . . . . Piercing . | . . . . . . . Highest Corruption . | . . . . . . . Average Corruption . | . . . . . . . Corruption Purged . | . . . . . . . Overload Shots . | . . . . . . . Overflow Damage 51 | . . . . . . 51 Projectiles 26 | . . . . . . 26 Explosions 25 | . . . . . . 25 Melee . | . . . . . . . Knockbacks 8 | . . . . . . 8 Impact 1 | . . . . . . 1 Kinetic 7 | . . . . . . 7 Secondary . | . . . . . . . Self-Inflicted Damage 10 | . . . . . . 10 Shots 1 | . . . . . . 1 Rammed 6 | . . . . . 5 1 Targets Rammed 6 | . . . . . 5 1 Kicked . | . . . . . . . Crushed . | . . . . . . . Highest Temperature 530 | . 12 177 85 54 99 530 Average Temperature 78 | . 7 49 39 24 45 103 Received Heat Transfer 1512 | . 24 165 . . 27 1296 Effects 6 | . . . . . . 6 Shutdowns 2 | . . . . . . 2 Interference 3 | . . . . . . 3 Damage (major) 1 | . . . . . . 1 Siege Activations . | . . . . . . . Robots Corrupted . | . . . . . . . Combat Hostiles . | . . . . . . . Parts Fried . | . . . . . . . Impact Corruptions . | . . . . . . . Robots Melted . | . . . . . . . Combat Hostiles . | . . . . . . . Parts Melted 3 | . . 1 1 . . 1 Heat Transferred 1591 | . . 333 148 37 148 925 Parts Sabotaged . | . . . . . . . Parts Stolen . | . . . . . . . Parts Stripped . | . . . . . . . Power Chain Reactions . | . . . . . . . Missiles Intercepted . | . . . . . . . Alert | -11 -10 -9 -9 -9 -8 -8 ------- Run | Scr Mat Mat Min Exi Min Mat Peak Influence 713 | . 90 184 120 . 67 713 Average Influence 82 | . 22 62 105 . 8 164 Maximum Alert Level 3 | . . . . . . 3 Low Security (%) 89 | 100 100 100 100 . 100 70 Level 1 6 | . . . . . . 19 Level 2 2 | . . . . . . 8 Level 3 . | . . . . . . 1 Level 4 . | . . . . . . . Level 5 . | . . . . . . . High Security . | . . . . . . . Max Security . | . . . . . . . Squads Dispatched 13 | . 1 2 . . . 10 Investigation 2 | . 1 . . . . 1 Extermination . | . . . . . . . Reinforcement 8 | . . 2 . . . 6 Assault . | . . . . . . . Garrison 3 | . . . . . . 3 Intercept . | . . . . . . . Construction Impeded 3 | . . . . . . 3 Haulers Reinforced . | . . . . . . . Stealth | -11 -10 -9 -9 -9 -8 -8 --------- Run | Scr Mat Mat Min Exi Min Mat Distress Signals 9 | . . 2 . . . 7 Communications Jammed . | . . . . . . . Distress Signals . | . . . . . . . Times Spotted 84 | . 5 19 3 . 4 53 Peak Tracking Total 8 | . 2 4 2 . 2 8 Tactical Retreats 3 | . 1 1 . . . 1 Traps | -11 -10 -9 -9 -9 -8 -8 ------- Run | Scr Mat Mat Min Exi Min Mat Traps Triggered 1 | . . 1 . . . . Indirectly . | . . . . . . . Trap Hack Attempts . | . . . . . . . Triggered . | . . . . . . . Disarmed . | . . . . . . . Reprogrammed 10 | . . 10 . . . . Reused . | . . . . . . . Traps Extracted . | . . . . . . . Installed . | . . . . . . . Triggered . | . . . . . . . Machines | -11 -10 -9 -9 -9 -8 -8 ---------- Run | Scr Mat Mat Min Exi Min Mat Machines Disabled 6 | . . . . . . 6 Max in Single Turn 1 | . . . . . . 1 Machines Sabotaged . | . . . . . . . Garrisons Compromised . | . . . . . . . Overloaded Fab Kills . | . . . . . . . Fab Network Shutdowns . | . . . . . . . Hacking | -11 -10 -9 -9 -9 -8 -8 --------- Run | Scr Mat Mat Min Exi Min Mat Machines Accessed 12 | . 3 3 . 4 . 2 Terminals 8 | . 3 3 . . . 2 Fabricators . | . . . . . . . Repair Stations . | . . . . . . . Recycling Units . | . . . . . . . Scanalyzers . | . . . . . . . Garrison Access . | . . . . . . . Total Hacks 74 | . 11 8 . 48 . 7 Successful 67 | . 8 6 . 48 . 5 Failed 7 | . 3 2 . . . 2 Catastrophic . | . . . . . . . Database Lockouts . | . . . . . . . Manual 1 | . . . . 1 . . Terminals 26 | . 11 8 . . . 7 Fabricators . | . . . . . . . Repair Stations . | . . . . . . . Recycling Units . | . . . . . . . Scanalyzers . | . . . . . . . Garrison Access . | . . . . . . . Terminal Hacks 67 | . 8 6 . 48 . 5 Record 54 | . 3 3 . 48 . . Robot Analysis 1 | . 1 . . . . . Prototype ID Bank 1 | . 1 . . . . . Terminal Index 1 | . . . . . . 1 Unreport Threat 3 | . 1 1 . . . 1 Reprogram Traps 2 | . . 2 . . . . Patrol Status 1 | . . . . . . 1 Registered Components 2 | . 1 . . . . 1 Zone Layout 2 | . 1 . . . . 1 Fabricator Hacks . | . . . . . . . Repair Station Hacks . | . . . . . . . Recycling Unit Hacks . | . . . . . . . Scanalyzer . | . . . . . . . Garrison Access Hacks . | . . . . . . . Unauthorized Hacks . | . . . . . . . Terminals . | . . . . . . . Fabricators . | . . . . . . . Repair Stations . | . . . . . . . Recycling Units . | . . . . . . . Scanalyzers . | . . . . . . . Garrison Access . | . . . . . . . Data Cores Recovered . | . . . . . . . Used . | . . . . . . . Hacking Detections 8 | . 3 3 . . . 2 Full Trace Events 4 | . 2 1 . . . 1 Feedback Events . | . . . . . . . Feedback Blocked . | . . . . . . . Robot Schematics Acquired . | . . . . . . . Robots Built . | . . . . . . . Matter . | . . . . . . . Time . | . . . . . . . Total Robot Build Rating . | . . . . . . . Part Schematics Acquired . | . . . . . . . Parts Built . | . . . . . . . Matter . | . . . . . . . Time . | . . . . . . . Total Part Build Rating . | . . . . . . . Parts Repaired . | . . . . . . . Time . | . . . . . . . Parts Recycled . | . . . . . . . Recycled Matter . | . . . . . . . Retrieved Matter . | . . . . . . . Retrieved Components . | . . . . . . . Parts Scanalyzed . | . . . . . . . Part Schematics Acquired . | . . . . . . . Parts Damaged . | . . . . . . . Bothacking | -11 -10 -9 -9 -9 -8 -8 ------------ Run | Scr Mat Mat Min Exi Min Mat Used RIF Installer . | . . . . . . . Robots Hacked . | . . . . . . . Non-combat . | . . . . . . . Combat . | . . . . . . . Robot Hacks Applied . | . . . . . . . Relay Couplers Released . | . . . . . . . Robots Rewired 3 | . . . . 3 . . Allies Hacked . | . . . . . . . Hacks Repelled . | . . . . . . . Allies | -11 -10 -9 -9 -9 -8 -8 -------- Run | Scr Mat Mat Min Exi Min Mat Total Allies 6 | . . . 3 3 . . Largest Group 6 | . . . 3 6 6 1 Highest-Rated Group 77 | . . . 40 77 77 21 Highest-Rated Ally 21 | . . . 16 21 21 21 Total Orders . | . . . . . . . Ally Attacks 43 | . . . . . 17 26 Total Damage 757 | . . . . . 191 566 Kills 11 | . . . . . 1 10 Allies Corrupted . | . . . . . . . Allies Melted . | . . . . . . . Intel | -11 -10 -9 -9 -9 -8 -8 ------- Run | Scr Mat Mat Min Exi Min Mat Robot Analysis Total 1 | . 1 . . . . . Derelict Logs Recovered . | . . . . . . . Drone Launches . | . . . . . . . Drone Recoveries . | . . . . . . . Exploration | -11 -10 -9 -9 -9 -8 -8 ------------- Run | Scr Mat Mat Min Exi Min Mat Turns Passed 5623 | 116 338 732 241 2265 760 1171 Spaces Moved 2756 | 67 185 363 128 1034 410 569 Core 8 | 7 . . . . . 1 Treads 2748 | 60 185 363 128 1034 410 568 Legs . | . . . . . . . Wheels . | . . . . . . . Hover . | . . . . . . . Flight . | . . . . . . . Fastest Speed 50 | 50 160 180 180 180 180 156 Average Speed 175 | 148 163 180 180 180 180 165 Slowest Speed 1150 | 160 180 180 180 180 180 1150 Overloaded Moves . | . . . . . . . Propulsion Burnouts . | . . . . . . . Robots Hopped . | . . . . . . . Cave-ins Triggered . | . . . . . . . Exploration Rate (%) 43 | 6 30 36 22 93 71 47 Regions Visited 6 Branch Regions 3 Pre-discovered Areas 1 | . . . . 1 . . Known Exits Taken 6 | 1 1 1 1 1 1 . Unknown Exits Taken . | . . . . . . . Scrap Searched . | . . . . . . . Spaces Dug . | . . . . . . . Terrain Destroyed 157 | . . . . . . 157 Melee . | . . . . . . . Projectile . | . . . . . . . AOE 157 | . . . . . . 157 Actions | -11 -10 -9 -9 -9 -8 -8 --------- Run | Scr Mat Mat Min Exi Min Mat Total 3355 | 84 204 394 131 1432 420 690 Wait 32 | . . . . . . 32 Move 2750 | 66 184 362 127 1033 409 569 Hop . | . . . . . . . Pick Up 32 | 11 3 3 . 1 2 12 Fast Attach . | . . . . . . . Attach 25 | 7 4 3 . . . 11 Detach . | . . . . . . . Swap . | . . . . . . . Drop 13 | . 3 1 . . . 9 Fire 102 | . 10 25 4 3 4 56 Melee . | . . . . . . . Ram . | . . . . . . . Kick . | . . . . . . . Crush 6 | . . . . . 5 1 Escape Stasis . | . . . . . . . Rewire 395 | . . . . 395 . . Trap . | . . . . . . . Miscellaneous . | . . . . . . . Route ------- -11/Scrapyard -10/Materials -9/Materials -9/Mines -9/Exiles (discovered 2 exits: *Min x2) -8/Mines -8/Materials History --------- Turn | Location | Event 13 | -11/Scrapyard | Identified exit to Materials 13 | -11/Scrapyard | Discovered exit to Materials (range 15) 117 | -11/Scrapyard | Entered Materials 117 | -10/Materials | Evolved 1 slot: Utility x1 309 | -10/Materials | Build established: Mutant 402 | -10/Materials | Identified exit to Materials 402 | -10/Materials | Discovered exit to Materials (range 10) 455 | -10/Materials | Entered another Materials area 455 | -9/Materials | Evolved 2 slots: Utility x1, Weapon x1 743 | -9/Materials | Build established: Hauler-Tank 1158 | -9/Materials | Identified exit to Mines 1158 | -9/Materials | Discovered exit to Mines (range 16) 1187 | -9/Materials | Entered Mines 1276 | -9/Mines | Met a Derelict bent on vengeance 1381 | -9/Mines | Assisted by bots powering up and referring to "LRC-V3" 1416 | -9/Mines | Deemed a non-threat by the Exiles lab entrance 1417 | -9/Mines | Identified exit to Exiles 1417 | -9/Mines | Discovered exit to Exiles (range 5) 1428 | -9/Mines | Entered Exiles 1428 | -9/Exiles | Found Exiles lab destroyed 1428 | -9/Exiles | Accompanied by 3 allies 2003 | -9/Exiles | Learned location of Zion (-7) 2114 | -9/Exiles | Build established: Commander-Tank 2344 | -9/Exiles | Identified exit to Mines 2344 | -9/Exiles | Discovered exit to Mines (range 11) 3475 | -9/Exiles | Discovered exit to Mines (range 14) 3693 | -9/Exiles | Entered Mines 3693 | -8/Mines | Accompanied by 6 allies 4242 | -8/Mines | Build established: Hauler-Tank 4442 | -8/Mines | Identified exit to Materials 4442 | -8/Mines | Discovered exit to Materials (range 6) 4453 | -8/Mines | Entered Materials 4453 | -8/Materials | Accompanied by 1 ally 4453 | -8/Materials | Evolved 2 slots: Propulsion x2 4886 | -8/Materials | Build established: Hauler-Gunner 5554 | -8/Materials | Destroyed 9 combat bots 5599 | -8/Materials | Core integrity fell below 50% 5610 | -8/Materials | Core integrity fell below 20% 5617 | -8/Materials | Lost 8 parts (1p4n3w) 5624 | -8/Materials | Destroyed by G-47 Trooper with Particle Gun Last Messages --------------- 05572_ U-05 Engineer builds a Wall. 05577_ U-05 Engineer lays Concrete. 05579_ U-05 Engineer builds a Wall. 05584_ U-05 Engineer lays Concrete. 05586_ U-05 Engineer builds a Wall. 05586_ Lgt. Cannon destroyed. 05590_ U-05 Engineer lays Concrete. 05590_ R-06 Scavenger collects Carbon-fiber Leg. 05591_ U-05 Engineer lays Concrete. 05592_ U-05 Engineer builds a Wall. 05593_ R-06 Scavenger collects Hvy. Laser. 05598_ U-05 Engineer lays Concrete. 05602_ The unstable cave ceiling collapses. 05602_ U-05 Engineer builds a Door. 05606_ U-05 Engineer builds a Wall. 05609_ U-05 Engineer lays Concrete. 05611_ Y-45 Defender destroyed. 05611_ U-05 Engineer lays Concrete. 05614_ U-05 Engineer builds a Wall. 05623_ U-05 Engineer lays Concrete. Map ----- +----------------------------------------------------+ | ???????????????# #?????????????????? | | ???????????????# #?????????????????? | | ???????????????# #?????????????????? | | ???????????????# #?????????????????? | | ???????????????# #?????????????????? | | ???????????????# +?????????????????? | | ???????????????# #?????????????????? | | ?????????##+#??# #?????????????????? | | ?????????# # ################### | | ?????????# "T" # | | ?????????# # | | ?????????#]]] # | | ????????##]]] !# ########### ###+# | | ????????# ]] # t##????????# #???? | | ?????#???# # ##????????# #???? | | ?????# #####; ##????????+ #?""" | | ?????# ##????????# #?""" | | ?????#### Y a########??# #?""" | | ????????# Yt g # #??# # | | ????????# + """ #??# # | | ????????# # """ #??# | | ????????# # """ #?## ! | | ???"""??# a # #?## # | | ? """"" #*= # !#?## # % | | # !%[ *!uu# ######?## =# | | # [ = @=%[ # #????### # | | # # Y o%"""#????# ! # | | ? " " ## G"#????# | | ????"R??# """#????# # | | ????????### ##????# # | | ????????? ##?????# *# | | ????????# "T" !##??????# # ## # # | | ????????# """ #???????## #*# #### | | ????????# ########???######## # ! | | ????????# ???????????# !# # | | ????????# ???????????# # # | | ????????# ???????????# " " ?# # | | ????????# ???????????# "Y" # # | | ????????# ???????????# """ + / | | ????????# ??????????## # ###### | | ????????? ??????????# ## ### ###??? | | ??????????????????????# # #### | | ????????????????""" ## ##### | | ????????????????""" *%= % | | ????????????? ##[# ### | | ??????????????????????# # #### | | ??????????????????????#### ###+## #?? | | ?????????????????????????####! #?? | | ????????????????????????????# #?? | | ????????????????????????????# """ !#?? | +----------------------------------------------------+ Best States ------------- Heat Dissipation 31 Energy Generation 14 Energy Capacity 275 Matter Stores 300 Matter Capacity 300 Sight Range 16 Terrain Scan Density 10 Armor Coverage 150 Resistance: KI 35 Resistance: TH 35 Resistance: EX 35 Resistance: EM 35 Resistance: I 35 Resistance: S 35 Resistance: P 35 Power Shielding 33 Evasion (%) 40 Targeting Accuracy 5 Recoil Reduction 4 Item Schematics ----------------- None Robot Schematics ------------------ None Fabricated ------------ Nothing Alien Tech Used ----------------- None Achievements -------------- A New Friend Challenges ------------ None Game ------ Seed ScatterDispersionScrap Manual? 0 Play Time 00:37:04 Cumulative 15.2 hours Start 2019.11.28 @ 14:35:33 End 2019.11.28 @ 15:25:50 Sessions 1 Manual Loads 0 Difficulty Explorer Special Mode None Game No. 61 Rogue 57 Adventurer 0 Explorer 4 Win Type - Total 0 Types 0/0/0/0/0/0/0 Lore% 19 Gallery% 15 Achievement% 16 Wizard Run 0 Options --------- ASCII 0 Keyboard 0 Movement Arrows Keybinds 0 Fullscreen 1 Font 18/SmallcapsGlow Map View 76x50 Tactical HUD 1 Map Filters NONE Filters NONE Steam 1 RUN: d660f38a-9ec5-479c-ab58-eb70a2e31fa0